bitfinex/quotes_ETHUSD_20250504
["timestamp","ask_amount","ask_price","bid_price","bid_amount"]
[1746398079141,5.489,1819.8,1819.6,3.37253882]
[1746398079426,5.489,1819.8,1819.4,0.25870248]
[1746398079427,5.49770034,1819.0,1818.4,1.65374]
[1746398079631,18.25490725,1819.7,1818.9,2.78197953]
[1746398079790,5.49487494,1819.9,1819.1,3.18053619]
[1746398079791,5.49507733,1819.9,1819.1,3.18053619]
[1746398079988,5.49511427,1819.8,1819.2,2.73447696]
[1746398080193,0.4075867,1820.2,1819.0,0.769]
[1746398080394,6.096,1820.1,1819.0,0.769]
[1746398080600,3.18053619,1819.7,1818.3,2.75518079]
[1746398080793,6.096,1820.1,1818.1,0.75552185]
[1746398080794,5.499945,1818.2,1818.1,0.75552185]
[1746398080999,6.096,1818.6,1817.6,0.7509]
[1746398081223,5.49903766,1818.5,1817.9,2.73554404]
[1746398081430,5.50012555,1818.2,1817.9,2.73554404]
[1746398081608,6.096,1818.6,1817.9,2.73554404]
[1746398081609,6.5130405,1818.6,1817.9,2.73554404]
[1746398081811,8.49906274,1818.5,1817.4,3.54584393]
[1746398081988,5.49951018,1818.4,1817.4,3.54584393]
[1746398082196,5.50055005,1818.0,1817.8,3.19886607]
[1746398082389,5.91593445,1818.6,1817.8,3.19886607]
[1746398082589,6.099,1818.5,1817.8,3.19886607]
[1746398082824,5.49981985,1818.3,1817.8,3.19886607]
[1746398082994,6.099,1818.5,1817.8,3.51875268]
[1746398083729,18.164,1819.1,1818.0,2.74998637]
[1746398084027,5.90644749,1819.2,1818.2,2.75978401]
[1746398084239,0.00707232,1818.4,1818.0,2.74998637]
[1746398084447,0.00707232,1818.4,1818.0,5.93052256]
[1746398084740,0.00707232,1818.4,1818.0,11.78093028]
[1746398085041,0.00707232,1818.4,1818.3,5.93571698]
[1746398085215,0.00707232,1818.4,1818.3,12.2567595]
[1746398085958,0.0545364,1819.2,1818.9,2.78197953]
[1746398086103,0.0545364,1819.2,1819.0,3.18053619]
[1746398086433,0.0545364,1819.2,1819.0,0.8037]
[1746398087618,0.0545364,1819.2,1818.8,2.78094639]
[1746398088026,0.0545364,1819.2,1818.8,8.27905339]
[1746398088241,0.0545364,1819.2,1818.8,2.78094639]
[1746398088450,0.0545364,1819.2,1818.8,8.63737482]
[1746398088648,0.0545364,1819.2,1819.0,2.74750513]
[1746398088803,0.0545364,1819.2,1819.0,8.24494876]
[1746398089007,0.0495364,1819.2,1819.0,2.74750513]
[1746398089214,0.0495364,1819.2,1819.1,0.55]
[1746398089413,0.0495364,1819.2,1819.0,2.74750513]
[1746398089842,0.0495364,1819.2,1819.0,8.24498564]
[1746398090009,0.0495364,1819.2,1819.0,3.94505731]
[1746398090451,0.0495364,1819.2,1819.1,6.0472239]
[1746398090743,0.0495364,1819.2,1819.0,2.74750513]
[1746398090934,0.04745745,1819.2,1819.0,2.74750513]
[1746398091141,0.04745745,1819.2,1819.0,8.24496653]
[1746398091629,0.04745745,1819.2,1819.1,8.76624204]
[1746398091830,0.04745745,1819.2,1819.1,9.57294204]
[1746398092005,6.335,1820.2,1819.4,3.18053619]
[1746398092210,5.49565372,1819.7,1818.9,2.78197953]
[1746398092509,3.0,1819.7,1819.1,2.71901814]
[1746398093109,8.49502906,1819.9,1819.1,2.71901814]
[1746398093344,5.90000055,1820.0,1819.2,3.49617696]
[1746398093549,0.4053049,1820.0,1819.2,8.9930256]
[1746398093717,8.4948176,1819.9,1819.2,4.94518553]
[1746398094245,5.49547032,1819.7,1819.2,3.49617696]
[1746398094410,3.0,1819.9,1819.0,2.74750513]
[1746398094609,8.54889842,1820.1,1819.0,2.74750513]
[1746398094844,5.49543043,1819.7,1819.0,2.74750513]
[1746398095046,3.0,1820.0,1819.0,5.92804132]
[1746398095247,5.49585999,1819.6,1819.0,2.74750513]
[1746398095434,5.49555133,1819.7,1819.0,2.74750513]
[1746398095616,5.49520672,1819.8,1819.0,2.74750513]
[1746398096008,5.49543252,1819.7,1819.0,2.74750513]
[1746398096841,5.95158096,1820.1,1819.0,2.74750513]
[1746398096842,5.49454297,1820.0,1819.0,2.74750513]
[1746398097026,8.49512667,1819.8,1819.0,2.74750513]
[1746398097231,5.49615713,1819.5,1819.0,2.74750513]
[1746398097458,5.4958692,1819.6,1819.0,2.74750513]
[1746398098034,5.49602559,1819.5,1819.0,2.74750513]
[1746398098414,5.4962927,1819.5,1819.0,2.74750513]
[1746398098847,5.55051841,1819.5,1818.9,2.79740285]
[1746398099019,0.0545,1819.5,1818.8,8.26449228]
[1746398099233,0.0545,1819.5,1819.0,5.92321477]
[1746398099433,3.0545,1819.8,1819.0,11.42071749]
[1746398099673,5.54961947,1819.8,1819.1,0.8309]
[1746398100738,5.54961947,1819.8,1819.0,11.42062015]
[1746398100739,5.54961947,1819.8,1819.0,9.79098117]
[1746398100936,5.49560939,1819.7,1819.2,3.18053619]
[1746398101380,5.49573382,1819.6,1819.2,3.18053619]
[1746398101581,5.49556112,1819.7,1819.2,3.18053619]
[1746398101958,0.0545,1819.8,1819.2,3.18053619]
[1746398102352,5.549775,1819.8,1819.2,3.18053619]
[1746398102548,5.495275,1819.8,1819.2,3.18053619]
[1746398102853,5.49516341,1819.8,1819.2,3.18053619]
[1746398103065,5.49516341,1819.8,1819.2,5.89025608]
[1746398103267,5.49516341,1819.8,1819.2,3.18053619]
[1746398103462,5.49529566,1819.8,1819.2,5.89025608]
[1746398103664,5.4952847,1819.8,1819.2,5.89025608]
[1746398103970,3.0,1819.9,1819.2,6.69515608]
[1746398104180,5.49523541,1819.8,1819.2,6.69515608]
[1746398104587,5.49517685,1819.8,1819.2,6.69515608]
[1746398104955,7.0871,1820.1,1819.3,2.74117296]
[1746398105254,0.7848,1820.4,1819.9,3.18671453]
[1746398105559,5.49299642,1820.5,1819.9,3.18671453]
[1746398105951,8.49284546,1820.6,1820.0,0.7569]
[1746398106156,5.49284546,1820.6,1820.0,0.7569]
[1746398106395,5.49300892,1820.5,1820.0,0.7569]
[1746398106556,5.49300892,1820.5,1819.6,3.31823743]
[1746398106557,5.49340161,1820.4,1819.7,0.7619]
[1746398106759,5.49372686,1820.3,1819.7,0.7619]
[1746398106986,0.8319,1820.5,1819.7,0.7619]
[1746398106987,3.8319,1820.5,1819.7,0.7619]
[1746398107156,5.4949641,1819.9,1819.5,2.71500216]
[1746398107351,3.0,1820.3,1819.5,2.71500216]
[1746398107352,5.49456489,1820.0,1819.5,2.71500216]
[1746398107579,5.49494038,1819.9,1819.5,2.71500216]
[1746398107778,5.49497491,1819.9,1819.4,0.7619]
[1746398108094,5.49476053,1820.0,1819.4,0.7619]
[1746398108305,5.49529025,1819.8,1819.4,0.7619]
[1746398108481,3.0,1820.3,1819.4,0.7619]
[1746398108683,5.49469811,1820.0,1819.4,0.7619]
[1746398108861,3.0,1820.0,1819.4,0.7619]
[1746398109187,5.49559917,1819.7,1819.4,0.7619]
[1746398110294,9.32745865,1820.0,1819.4,0.7619]
[1746398110612,5.49556353,1819.7,1819.4,0.7619]
[1746398111474,5.49581275,1819.6,1819.4,0.7619]
[1746398111701,5.49557904,1819.7,1819.4,0.7619]
[1746398111910,5.49555197,1819.7,1819.4,0.7619]
[1746398112083,9.32742682,1820.0,1819.4,0.7619]
[1746398112501,9.32742682,1820.0,1818.9,2.79740285]
[1746398112502,3.0,1819.9,1818.9,2.79740285]
[1746398112681,5.49661957,1819.3,1818.6,2.7292277]
[1746398113007,6.156,1819.2,1818.5,6.76444919]
[1746398113168,4.50167292,1819.2,1818.9,2.79740285]
[1746398113369,11.65193604,1819.6,1819.0,3.57537858]
[1746398113582,5.49603568,1819.5,1819.0,3.57537858]
[1746398114066,6.156,1819.6,1819.0,3.57537858]
[1746398114067,11.6517476,1819.6,1819.2,2.70971989]
[1746398114373,6.156,1819.6,1819.2,2.70971989]
[1746398114797,5.49546336,1819.7,1819.2,2.70971989]
[1746398115067,5.49547359,1819.7,1819.2,3.29936333]
[1746398115271,5.49505454,1819.9,1819.4,4.01941453]
[1746398115483,5.49528627,1819.8,1819.4,4.01941453]
[1746398115822,5.49573993,1819.6,1819.4,0.8327]
[1746398115984,5.49552519,1819.7,1819.2,2.70971989]
[1746398116184,5.49617312,1819.5,1819.2,2.70971989]
[1746398116490,5.49644596,1819.4,1819.2,2.70971989]
[1746398117008,5.49614237,1819.5,1819.2,2.70971989]
[1746398117210,5.49555276,1819.7,1819.2,2.70971989]
[1746398117373,5.49528961,1819.8,1819.2,2.70971989]
[1746398117706,14.65080405,1820.0,1819.2,3.05670188]
[1746398117707,5.49542673,1819.7,1819.2,3.05670188]
[1746398117922,5.49528198,1819.8,1819.2,3.05670188]
[1746398118080,5.49553207,1819.7,1819.2,3.05670188]
[1746398118270,5.49524092,1819.8,1819.2,3.05670188]
[1746398119332,5.49513574,1819.8,1819.2,2.70971989]
[1746398120342,6.156,1820.0,1819.4,2.78087167]
[1746398120545,6.156,1820.0,1819.4,5.9675862]
[1746398120746,6.9142,1820.4,1819.8,0.7553]
[1746398121043,6.156,1820.4,1820.0,3.18671453]
[1746398121198,5.49314482,1820.5,1820.0,3.18671453]
[1746398121399,18.18,1820.7,1820.1,0.7553]
[1746398121696,5.49294041,1820.6,1820.1,0.7553]
[1746398122036,23.67247702,1820.7,1820.1,0.7553]
[1746398122037,18.18,1820.7,1820.1,0.7553]
[1746398122199,5.49318758,1820.5,1820.1,0.7553]
[1746398122400,5.49383762,1820.3,1819.8,0.8004]
[1746398122599,5.49367312,1820.3,1819.8,0.8004]
[1746398122833,5.49391145,1820.2,1819.8,0.8004]
[1746398123334,5.49391145,1820.2,1819.8,3.5077545]
[1746398123638,5.49418401,1820.2,1819.8,3.5077545]
[1746398123949,5.49428949,1820.1,1819.8,3.5077545]
[1746398124098,5.49379062,1820.3,1819.8,3.5077545]
[1746398124296,3.7878,1820.6,1819.8,3.5077545]
[1746398124297,5.49434606,1820.1,1819.8,3.5077545]
[1746398124650,5.49402545,1820.2,1819.8,0.8004]
[1746398124953,5.49343455,1820.4,1819.9,2.75333098]
[1746398125129,5.49311978,1820.5,1819.9,2.75333098]
[1746398125300,5.49282917,1820.6,1819.9,2.75333098]
[1746398125500,5.49269471,1820.6,1819.9,2.75333098]
[1746398125700,5.49299842,1820.5,1819.9,2.75333098]
[1746398126241,5.49344731,1820.4,1819.9,2.75333098]
[1746398126766,24.336,1820.7,1820.0,9.03361888]
[1746398126915,29.82841397,1820.7,1820.1,5.93410916]
[1746398127122,24.336,1820.7,1820.1,5.93410916]
[1746398127431,5.49312256,1820.5,1820.0,0.7613]
[1746398127667,5.49315593,1820.5,1820.0,3.53927604]
[1746398127823,5.49336609,1820.4,1820.0,3.53927604]
[1746398128023,5.49376188,1820.3,1820.0,3.53927604]
[1746398128255,10.9876303,1820.3,1820.0,3.53927604]
[1746398128556,5.49361323,1820.3,1820.0,3.53927604]
[1746398128874,0.8249,1820.4,1819.7,2.7465851]
[1746398129018,5.49403132,1820.2,1819.7,2.7465851]
[1746398129235,0.8249,1820.4,1819.7,2.7465851]
[1746398129442,5.49335339,1820.4,1819.9,2.75333098]
[1746398129759,5.49316652,1820.5,1819.9,2.75333098]
[1746398130067,5.49287919,1820.6,1820.0,0.7859]
[1746398130501,18.18,1820.7,1819.9,2.75333098]
[1746398130665,5.49285266,1820.6,1820.1,3.18671453]
[1746398131043,23.67253215,1820.7,1820.1,3.18671453]
[1746398131435,23.67253215,1820.7,1820.1,5.93410916]
[1746398131636,18.18,1820.7,1820.2,0.32680314]
[1746398131853,18.18,1820.7,1820.1,11.42809086]
[1746398132072,11.64719954,1820.8,1820.2,0.32156336]
[1746398132274,5.49219954,1820.8,1820.2,0.32156336]
[1746398132475,5.49242183,1820.7,1820.2,0.32156336]
[1746398132679,5.49275886,1820.6,1820.1,5.93410916]
[1746398132879,5.49275886,1820.6,1820.2,0.32156336]
[1746398133178,5.49284288,1820.6,1820.1,5.93410916]
[1746398133470,5.49253447,1820.7,1820.1,5.93410916]
[1746398133671,5.492296,1820.8,1820.2,1.10346978]
[1746398133986,5.49187998,1820.9,1820.3,5.49342911]
[1746398134286,11.6455215,1821.0,1820.5,0.7827]
[1746398134487,6.154,1821.0,1820.6,0.32076978]
[1746398134786,5.49219861,1820.8,1820.6,0.32076978]
[1746398135194,5.49927094,1820.8,1820.6,0.32076978]
[1746398135491,5.4992097,1820.8,1820.6,0.32076978]
[1746398135787,0.00707233,1820.8,1820.6,0.32076978]
[1746398135961,5.49239303,1820.7,1820.6,0.32076978]
[1746398136161,5.49931751,1820.8,1820.6,0.32076978]
[1746398136796,0.00707233,1820.8,1820.6,0.32076978]
[1746398137302,5.49920898,1820.8,1820.6,0.32076978]
[1746398137693,5.49239303,1820.7,1820.6,0.32076978]
[1746398137896,5.49239303,1820.7,1820.2,0.7888]
[1746398137897,5.49316761,1820.5,1820.2,0.7888]
[1746398138095,5.49321403,1820.5,1820.3,0.29276943]
[1746398138299,5.49321403,1820.5,1820.3,3.06649859]
[1746398138675,6.32583896,1820.8,1820.3,3.06649859]
[1746398138875,5.07662811,1820.4,1820.3,3.06649859]
[1746398139290,5.07662811,1820.4,1820.3,0.29276943]
[1746398139986,5.492836,1820.6,1820.3,0.29276943]
[1746398140402,5.49249701,1820.7,1820.3,0.29276943]
[1746398140588,10.98515325,1820.7,1820.3,0.29276943]
[1746398140798,5.49249701,1820.7,1820.3,0.29276943]
[1746398141107,5.49269907,1820.6,1820.3,0.29276943]
[1746398143376,5.49267446,1820.7,1820.3,0.29276943]
[1746398143789,5.49239303,1820.7,1820.3,3.31073981]
[1746398144210,5.49270682,1820.6,1820.4,0.8063]
[1746398144398,5.49252797,1820.7,1820.5,0.2949119]
[1746398144600,5.49251843,1820.7,1820.5,0.2949119]
[1746398144822,5.49931992,1820.8,1820.5,0.2949119]
[1746398145004,0.00707233,1820.8,1820.5,3.31288228]
[1746398145318,0.00707233,1820.8,1820.7,3.01797038]
[1746398145533,0.00707233,1820.8,1820.5,3.31288228]
[1746398145682,5.49917749,1820.8,1820.7,0.28880154]
[1746398146013,0.00707233,1820.8,1820.7,0.28880154]
[1746398146316,0.00707233,1820.8,1820.5,3.01797038]
[1746398146516,0.00707233,1820.8,1820.7,0.28880154]
[1746398146698,0.00707233,1820.8,1820.5,3.01797038]
[1746398147010,0.00707233,1820.8,1820.6,0.28880154]
[1746398148021,0.00707233,1820.8,1820.7,3.85057038]
[1746398148230,0.00707233,1820.8,1820.7,4.13754727]
[1746398149861,0.00707233,1820.8,1820.7,3.30494727]
[1746398150231,7.27517396,1820.8,1820.7,3.30494727]
[1746398150438,1.78308258,1820.8,1820.7,3.30494727]
[1746398153091,1.78308258,1820.8,1820.7,10.45843503]
[1746398153358,18.178,1821.5,1821.0,3.01797038]
[1746398153359,5.49084069,1821.3,1821.0,3.01797038]
[1746398153562,5.49082092,1821.3,1821.0,3.01797038]
[1746398153736,5.49110088,1821.2,1821.1,0.28586646]
[1746398155159,5.49110088,1821.2,1820.8,3.01797038]
[1746398155358,5.49110088,1821.2,1821.1,0.28586646]
[1746398155548,5.49129468,1821.1,1820.8,3.01797038]
[1746398156250,5.49151211,1821.0,1820.8,3.01797038]
[1746398156452,5.49178977,1820.9,1820.8,3.01797038]
[1746398159453,5.49178977,1820.9,1820.5,3.49459368]
[1746398159454,5.49121268,1821.1,1820.6,3.01797038]
[1746398159654,5.4922016,1820.8,1820.6,3.01797038]
[1746398160054,5.4922016,1820.8,1820.7,0.28198018]
[1746398160560,6.3200016,1820.8,1820.7,0.28198018]
[1746398160757,0.7618,1820.7,1819.6,2.76823743]
[1746398160959,0.7618,1819.8,1819.4,2.78087167]
[1746398161295,5.49601538,1819.5,1819.4,2.78087167]
[1746398161501,5.49601538,1819.5,1818.7,5.923]
[1746398161502,5.49510935,1819.8,1819.2,2.70971989]
[1746398161655,5.49630877,1819.5,1819.2,2.70971989]
[1746398161972,1.13154258,1819.9,1819.1,2.75364634]
[1746398161973,5.49663114,1819.3,1819.1,2.75364634]
[1746398162486,5.49790518,1818.9,1818.4,2.79225776]
[1746398162674,5.49790518,1818.9,1818.5,0.27922578]
[1746398163059,5.49709215,1819.2,1818.8,3.01797038]
[1746398163261,2.7240328,1821.5,1819.0,3.01797038]
[1746398163454,5.49491211,1819.9,1819.6,3.01797038]
[1746398163650,5.49437971,1820.1,1819.8,3.01797038]
[1746398163863,5.49437971,1820.1,1819.4,5.49607077]
[1746398163864,10.9888801,1820.1,1819.7,3.18624282]
[1746398164078,5.49335932,1820.4,1820.0,3.18624282]
[1746398164357,8.51151991,1820.1,1820.0,3.18624282]
[1746398164562,8.51151991,1820.1,1820.0,3.94074282]
[1746398164760,8.51151991,1820.1,1819.9,3.18624282]
[1746398165297,8.51151991,1820.1,1819.9,8.68084688]
[1746398165594,8.51151991,1820.1,1820.0,0.7567]
[1746398165999,8.51151991,1820.1,1819.9,3.18624282]
[1746398166983,8.51151991,1820.1,1820.0,3.18624282]
[1746398167563,5.49269471,1820.6,1819.7,3.94294282]
[1746398167763,5.49456051,1820.0,1819.7,3.94294282]
[1746398167995,5.49496453,1819.9,1819.5,6.5457]
[1746398168213,5.49469251,1820.0,1819.5,6.5457]
[1746398168410,0.8188,1820.2,1819.5,13.01487355]
[1746398168560,5.49384071,1820.3,1819.7,3.18624282]
[1746398168764,5.49395852,1820.2,1819.7,3.18624282]
[1746398169007,5.49329817,1820.4,1819.7,3.18624282]
[1746398169177,5.49540683,1819.8,1819.5,0.7567]
[1746398169381,5.49510935,1819.8,1819.2,0.8226]
[1746398169602,0.818,1819.9,1819.1,3.18624282]
[1746398169798,5.49608703,1819.5,1819.1,3.18624282]
[1746398169978,5.49585699,1819.6,1819.1,3.18624282]
[1746398170182,0.818,1819.9,1819.1,3.18624282]
[1746398170381,6.31283034,1819.9,1819.2,5.81537935]
[1746398170586,11.8079313,1819.9,1819.2,0.31862428]
[1746398171004,5.49512484,1819.8,1819.2,0.31862428]
[1746398171191,6.31297301,1819.9,1819.2,5.81552671]
[1746398171394,5.49462818,1820.0,1819.4,3.18624282]
[1746398172605,6.5745,1820.2,1819.7,3.18624282]
[1746398172606,12.06853417,1820.2,1819.7,3.18624282]
[1746398172813,0.7839,1820.4,1819.8,0.8201]
[1746398172995,6.27739623,1820.4,1819.8,0.8201]
[1746398173196,0.7839,1820.4,1819.8,6.31516056]
[1746398173409,5.4931881,1820.5,1820.0,3.18624282]
[1746398173594,0.7839,1820.7,1820.0,8.68058691]
[1746398173987,6.2764528,1820.7,1820.0,8.68058691]
[1746398174906,6.2764528,1820.7,1820.1,0.24734629]
[1746398176298,5.49270227,1820.6,1820.1,0.24734629]
[1746398176713,6.27643002,1820.7,1820.1,0.24734629]
[1746398177296,0.55,1821.5,1820.1,0.24734629]
[1746398177297,18.9508,1821.3,1820.6,8.67891359]
[1746398177510,5.79,1821.4,1820.9,3.18624282]
[1746398177834,5.49034708,1821.4,1820.9,3.18624282]
[1746398178004,5.49034708,1821.4,1821.0,0.24244218]
[1746398178406,6.26769839,1821.6,1821.0,0.24244218]
[1746398178605,5.17770364,1821.7,1821.1,0.7608]
[1746398178606,10.66721719,1821.7,1821.1,0.7608]
[1746398178821,16.15688973,1821.7,1821.2,0.23983272]
[1746398179022,10.66721719,1821.7,1821.2,3.18624282]
[1746398179206,5.17770364,1821.7,1821.3,0.23983272]
[1746398180011,0.5,1821.7,1821.3,0.23983272]
[1746398180345,0.5,1821.7,1821.5,3.18624282]
[1746398180836,0.5,1821.7,1821.6,0.23777745]
[1746398181940,10.16536263,1822.3,1821.7,0.7516]
[1746398182148,5.48787286,1822.2,1821.8,3.18624282]
[1746398182438,4.67770364,1822.3,1821.8,3.40687445]
[1746398182738,10.1652839,1822.3,1821.8,3.40687445]
[1746398183038,4.67770364,1822.3,1821.8,3.40687445]
[1746398183240,5.48877545,1821.9,1821.8,0.22063163]
[1746398184208,5.49004407,1821.5,1821.3,5.787]
[1746398184413,5.48926624,1821.8,1821.4,0.21849993]
[1746398184650,5.48954684,1821.7,1821.1,15.21982629]
[1746398184811,5.48880185,1821.9,1821.5,0.21849993]
[1746398185145,5.48880185,1821.9,1821.5,3.18624282]
[1746398185446,5.48862667,1822.0,1821.6,0.22086853]
[1746398185610,5.48838203,1822.1,1821.6,0.22086853]
[1746398185814,5.48799533,1822.2,1821.7,0.7554]
[1746398186005,5.48799533,1822.2,1821.7,6.5424]
[1746398186327,5.4876739,1822.3,1821.8,3.40711135]
[1746398186532,5.48788894,1822.2,1821.8,3.40711135]
[1746398187847,5.48836357,1822.1,1821.8,3.40711135]
[1746398188746,5.48848871,1822.0,1821.8,3.40711135]
[1746398188944,5.48877545,1821.9,1821.8,0.22086853]
[1746398189155,5.48975204,1821.6,1821.2,9.74944282]
[1746398189339,5.49007665,1821.5,1821.2,6.5632]
[1746398189662,5.49020458,1821.5,1821.2,6.5632]
[1746398189957,10.98144316,1821.3,1821.0,8.97124282]
[1746398190159,5.49058364,1821.3,1821.0,8.97124282]
[1746398191452,5.49087307,1821.3,1821.0,8.97124282]
[1746398191665,5.49101785,1821.2,1821.0,8.97124282]
[1746398191858,5.49101785,1821.2,1821.0,3.18624282]
[1746398192032,5.49087307,1821.3,1821.0,3.18624282]
[1746398192458,5.49044277,1821.4,1821.0,3.18624282]
[1746398192771,5.49046503,1821.4,1821.0,3.18624282]
[1746398192971,5.49061076,1821.3,1821.0,3.18624282]
[1746398193344,5.49046503,1821.4,1821.0,3.18624282]
[1746398193670,5.49058636,1821.3,1821.0,3.18624282]
[1746398193842,0.00088,1821.2,1821.0,3.18624282]
[1746398194244,0.00088,1821.2,1821.1,0.8021]
[1746398196250,5.49149138,1821.0,1820.8,6.583]
[1746398196450,5.49149138,1821.0,1820.8,0.797]
[1746398196782,0.00088,1821.2,1820.8,6.34389453]
[1746398197080,0.00088,1821.2,1821.1,3.18624282]
[1746398197267,0.00088,1821.2,1821.1,2.84157584]
[1746398200878,0.00088,1821.2,1821.1,8.33276248]
[1746398201177,0.00088,1821.2,1821.1,8.38766788]
[1746398201592,0.00088,1821.2,1821.1,8.93766788]
[1746398201789,0.00088,1821.2,1821.1,10.38058179]
[1746398202383,0.00088,1821.2,1821.1,8.33276248]
[1746398203381,0.00088,1821.2,1821.1,13.96876248]
[1746398204048,0.00088,1821.2,1821.1,0.797]
[1746398204254,0.79218,1821.2,1820.7,18.166]
[1746398204457,5.49165174,1821.0,1820.7,18.166]
[1746398204662,5.49134242,1821.1,1820.7,18.166]
[1746398204867,5.49160579,1821.0,1820.8,0.16876094]
[1746398205069,6.28308977,1820.9,1820.8,0.16876094]
[1746398205366,0.7913,1820.9,1820.4,3.18624282]
[1746398205719,5.49164194,1821.0,1820.5,0.17214899]
[1746398205892,5.49164194,1821.0,1820.5,0.99914899]
[1746398206489,10.98340077,1821.0,1820.5,0.99914899]
[1746398206790,5.49193195,1820.9,1820.5,0.99914899]
[1746398208167,5.49215984,1820.8,1820.5,0.99914899]
[1746398209588,5.4916266,1821.0,1820.5,0.99914899]
[1746398209589,5.49197269,1820.9,1820.5,0.99914899]
[1746398210190,10.98403772,1820.9,1820.5,0.99914899]
[1746398210396,5.49197269,1820.9,1820.5,0.99914899]
[1746398211008,10.9840373,1820.9,1820.5,0.99914899]
[1746398211197,5.49213582,1820.8,1820.5,0.99914899]
[1746398211397,5.49197269,1820.9,1820.5,0.99914899]
[1746398211592,5.49213582,1820.8,1820.5,0.99914899]
[1746398212105,0.7905,1821.1,1820.5,0.17214899]
[1746398212106,5.49269471,1820.6,1820.5,0.17214899]
[1746398212411,5.49254948,1820.7,1820.3,0.813]
[1746398212610,5.49272817,1820.6,1820.5,0.17506558]
[1746398212813,5.49272817,1820.6,1820.3,0.813]
[1746398212978,5.49272817,1820.6,1820.5,0.17506558]
[1746398213312,5.49257339,1820.7,1820.3,0.813]
[1746398213515,5.49257339,1820.7,1820.4,0.17585405]
[1746398213711,5.49257339,1820.7,1820.3,0.813]
[1746398213907,10.98523767,1820.7,1820.3,0.813]
[1746398214112,10.98523767,1820.7,1820.4,0.1759329]
[1746398214316,5.49257339,1820.7,1820.3,0.813]
[1746398214517,5.49257339,1820.7,1820.4,0.18326259]
[1746398214719,10.98523601,1820.7,1820.3,0.813]
[1746398214892,10.98523601,1820.7,1820.4,0.18326259]
[1746398215094,10.98523601,1820.7,1820.3,0.813]
[1746398215583,10.98523601,1820.7,1820.4,0.18326259]
[1746398216018,10.98523601,1820.7,1820.3,0.813]
[1746398216217,10.98523601,1820.7,1820.5,0.18326259]
[1746398216515,5.49257339,1820.7,1820.6,0.18326259]
[1746398216917,10.98525309,1820.7,1820.3,0.813]
[1746398217219,10.98525309,1820.7,1820.4,0.18326259]
[1746398217220,5.49257339,1820.7,1820.4,0.18326259]
[1746398217611,5.49255217,1820.7,1820.3,0.813]
[1746398217817,5.49255217,1820.7,1820.5,0.183578]
[1746398218113,5.49255217,1820.7,1820.3,0.813]
[1746398218289,5.49255217,1820.7,1820.4,0.183578]
[1746398218492,5.49168895,1821.0,1820.4,8.67926285]
[1746398218718,5.49168895,1821.0,1820.5,1.05150429]
[1746398218904,5.49168895,1821.0,1820.5,0.183578]
[1746398219311,0.7905,1821.1,1820.5,0.183578]
[1746398219537,5.49195593,1821.2,1820.7,8.6785065]
[1746398219538,0.00088,1821.2,1820.7,8.6785065]
[1746398219902,0.00088,1821.2,1820.8,0.18349915]
[1746398220102,5.49180419,1821.2,1820.8,0.18349915]
[1746398221346,0.00088,1821.2,1820.9,5.49153977]
[1746398221517,0.00088,1821.2,1821.0,0.18160686]
[1746398221896,0.00088,1821.2,1821.0,5.67306268]
[1746398222145,0.00088,1821.2,1821.0,0.18160686]
[1746398222847,0.00088,1821.2,1821.0,5.67307187]
[1746398223004,0.00088,1821.2,1821.0,1.38017606]
[1746398223204,0.00088,1821.2,1821.1,5.49118664]
[1746398223536,0.00088,1821.2,1821.1,12.680557]
[1746398223743,0.00088,1821.2,1821.1,0.18137036]
[1746398223924,5.49235559,1820.8,1820.5,0.7546]
[1746398224103,5.49285171,1820.6,1820.2,0.7546]
[1746398224303,5.49300413,1820.5,1820.2,0.7546]
[1746398224578,5.49330021,1820.4,1819.9,6.3916]
[1746398224782,5.49319451,1820.5,1819.9,14.89123894]
[1746398224982,5.49285065,1820.6,1820.0,5.49449088]
[1746398225283,5.49320386,1820.5,1819.9,23.57189481]
[1746398225441,5.49320386,1820.5,1820.0,5.49449426]
[1746398225641,5.49281971,1820.6,1820.1,5.49414204]
[1746398225853,6.24755786,1820.7,1820.0,5.49432501]
[1746398226053,5.49216961,1820.8,1820.0,5.49432501]
[1746398226054,5.4922215,1820.8,1820.2,6.24832177]
[1746398227282,6.24694725,1820.9,1820.3,5.49356962]
[1746398227493,0.755,1820.9,1820.4,5.49315766]
[1746398227779,6.24680875,1820.9,1820.4,10.95415766]
[1746398228351,0.755,1820.9,1820.4,10.95415766]
[1746398228549,5.49252594,1820.7,1820.2,0.7546]
[1746398228775,5.49314559,1820.5,1820.1,5.461]
[1746398228984,5.49261469,1820.7,1820.1,10.95519335]
[1746398228985,5.49266074,1820.7,1820.1,10.95519335]
[1746398229187,0.755,1820.9,1820.1,9.32306955]
[1746398229483,5.49221204,1820.8,1820.2,6.28754274]
[1746398230793,5.49221204,1820.8,1820.2,6.28748838]
[1746398230989,5.49221204,1820.8,1820.2,0.7938]
[1746398231170,5.49221204,1820.8,1820.2,11.78125216]
[1746398231381,6.24688221,1820.9,1820.4,5.49316837]
[1746398231749,0.755,1820.9,1820.4,5.49316837]
[1746398232081,0.755,1820.9,1820.4,5.49315605]
[1746398232292,6.24681745,1820.9,1820.4,5.49315605]
[1746398232789,6.24681745,1820.9,1820.2,8.39799303]
[1746398232790,5.4921485,1820.8,1820.2,8.39794941]
[1746398233083,5.4921485,1820.8,1820.3,5.49354455]
[1746398233485,6.2469037,1820.9,1820.3,5.49354455]
[1746398233690,6.2469037,1820.9,1820.3,10.95454455]
[1746398234560,6.2469037,1820.9,1820.4,5.4932866]
[1746398234810,11.73895458,1820.9,1820.3,10.95443302]
[1746398235104,11.73895458,1820.9,1820.4,0.1378073]
[1746398235306,6.2469037,1820.9,1820.3,10.95443302]
[1746398235598,11.62870106,1820.9,1820.4,0.1378073]
[1746398235775,6.13664332,1820.9,1820.4,0.1378073]
[1746398235966,5.49216804,1820.8,1820.3,10.95434931]
[1746398236167,5.49216804,1820.8,1820.4,0.1378073]
[1746398236498,6.12631392,1820.9,1820.3,16.4477326]
[1746398236701,11.6183742,1820.9,1820.4,0.1378073]
[1746398236996,11.6183742,1820.9,1820.3,10.95434931]
[1746398237200,11.6183742,1820.9,1820.5,0.1378073]
[1746398237402,5.49212363,1820.8,1820.3,10.95434931]
[1746398237620,5.49212363,1820.8,1820.6,0.1378073]
[1746398237770,5.49212363,1820.8,1820.3,10.95434931]
[1746398238069,5.49212363,1820.8,1820.4,0.1378073]
[1746398238369,5.49212363,1820.8,1820.3,5.49334931]
[1746398238571,5.49212363,1820.8,1820.4,0.1378073]
[1746398238904,4.83136084,1820.8,1820.5,0.1378073]
[1746398239088,4.83136084,1820.8,1820.3,5.49334931]
[1746398239412,4.83136084,1820.8,1820.4,0.14260688]
[1746398239797,4.83136084,1820.8,1820.3,5.49334931]
[1746398239971,4.83136084,1820.8,1820.5,0.14260688]